Cogmind - Beta 16 @@@ ROGUE MODE // 2025.11.27 @ 17:45:01 Player: Skysub Result: Destroyed by S-10 Pest with Light Assault Rifle Performance ------------- Evolutions (1) 500 Regions Visited (2) 400 Robots Destroyed (1) 5 Value Destroyed (5) 5 Prototype IDs (0) 0 Alien Tech Used (0) 0 Bonus (200) 200 TOTAL SCORE: 1110 Bonus ------- Pacifist 200 Cogmind --------- Core Integrity 0/400 Matter 269/300 Energy 100/100 System Corruption 0% Temperature Cool (1) Movement Flying (40) Location -9/Materials Parts ------- > --- POWER (1) -------- (None) > --- PROPULSION (3) --- Flight Unit > --- UTILITY (3) ------ Weight Redist. System Signal Interpreter Terrain Scan Processor > --- WEAPON (2) ------- (None) > --- INVENTORY (5) ---- Light Ion Engine Light Treads Flight Unit Disposable Heat Sink Peak State ------------ > --- POWER ------------ (None) > --- PROPULSION ------- (None) > --- UTILITY ---------- Weight Redist. System Signal Interpreter Terrain Scan Processor > --- WEAPON ----------- Mining Claw > --- INVENTORY -------- Light Ion Engine Light Treads Flight Unit Disposable Heat Sink [Rating: 6] Favorites ----------- Power None Propulsion Flight Unit Flight Unit Flight Unit Utility Signal Interpreter Device Weight Redist. System Processor Signal Interpreter Weapon Mining Claw Slashing Weapon Mining Claw Build | -11 -10 -9 ------- Run | Yrd Mat Mat Slots Evolved 2 | . . 2 Power . | . . . Propulsion 1 | . . 1 Utility 1 | . . 1 Weapon . | . . . Parts Attached 5 | . 1 4 Power . | . . . Engine . | . . . Core . | . . . Reactor . | . . . Propulsion 1 | . . 1 Treads . | . . . Leg . | . . . Wheel . | . . . Hover . | . . . Flight 1 | . . 1 Utility 3 | . 1 2 Device 1 | . . 1 Storage . | . . . Processor 2 | . 1 1 Hackware . | . . . Protection . | . . . Artifact . | . . . Weapon 1 | . . 1 Energy Gun . | . . . Energy Cannon . | . . . Ballistic Gun . | . . . Ballistic Cannon . | . . . Launcher . | . . . Special Weapon . | . . . Impact Weapon . | . . . Slashing Weapon 1 | . . 1 Piercing Weapon . | . . . Special Melee Weapon . | . . . Unidentified Prototypes . | . . . Parts Lost 1 | . . 1 Power . | . . . Propulsion . | . . . Utility . | . . . Weapon 1 | . . 1 Highest Loss Streak 1 | . . 1 To Critical Strikes . | . . . Average Backups 3 | 1 3 4 Power 1 | 1 2 1 Propulsion 1 | . 1 1 Utility . | . . . Weapon . | . . . Tool/Special . | . . . Unused Backups 6 | . . 6 Power 3 | . . 3 Propulsion 2 | . . 2 Utility 1 | . . 1 Weapon . | . . . Tool/Special . | . . . Average Slot Usage (%) 16 | . 1 28 Flight 1 | . . 2 Device 5 | . . 9 Processor 9 | . 1 15 Peak Build Rating 6 | . 1 6 Average Rating 2 | . . 4 On Entrance . | . . 1 Avg Prop Armor Cover (%) . | . . . Naked Turns 84 | . 84 . Heaviest Build 2 | . . 2 Greatest Support 5 | 3 3 5 Greatest Overweight (x) . | . . . Average Overweight (x) . | . . . Largest Inventory Capacity 5 | 5 5 5 Average Capacity 5 | 5 5 5 Most Carried 5 | 3 4 5 Average Carried 4 | 2 3 4 Final Capacity 5 | 5 5 5 Final Carried 4 | 3 4 4 Class Distribution -------------------- 100% | Mutant Dominant Class ---------------- Mutant | -10/Materials Mutant | -9/Materials Resources | -11 -10 -9 ----------- Run | Yrd Mat Mat Matter Collected 234 | 200 . 34 Remotely . | . . . Salvage Created 15 | . . 15 Parts 2 | . . 2 Haulers Intercepted . | . . . Recyclers Shooed . | . . . Parts Field Recycled . | . . . Retrieved Matter . | . . . Parts Self-Destructed . | . . . Prevented . | . . . Parts Restored . | . . . Kills | -11 -10 -9 ------- Run | Yrd Mat Mat Combat Hostiles Destroyed . | . . . Classes Destroyed 1 | . . 1 Builder 1 | . . 1 Best Kill Streak 1 | . . 1 Combat Bots Only . | . . . Max Kills in Single Turn 1 | . . 1 Gunslinging . | . . . Exploded . | . . . Melee . | . . . Uniques/NPCs Destroyed . | . . . Combat | -11 -10 -9 -------- Run | Yrd Mat Mat Hostile Shots Fired 90 | . 14 76 Missed 38 | . 5 33 Hits 52 | . 9 43 Projectile 52 | . 9 43 Critical Strikes 1 | . . 1 Damage Taken 583 | . 124 459 Core 526 | . 124 402 Absorbed by Shields . | . . . Core Remaining (%) 75 | 100 50 . Volleys Fired . | . . . Largest . | . . . Hottest . | . . . Shots Fired . | . . . Gun . | . . . Cannon . | . . . Launcher . | . . . Special . | . . . Kinetic . | . . . Thermal . | . . . Explosive . | . . . Electromagnetic . | . . . Robot Hit Streak . | . . . Robot Miss Streak . | . . . Penetration Max . | . . . Secondary Targets . | . . . Shots Hit Robots 2 | . . 2 Core Hits 1 | . 1 . Critical Kills . | . . . Critical Parts Destroyed . | . . . Critical Strikes . | . . . Melee Attacks 3 | . . 3 Impact . | . . . Slashing 3 | . . 3 Piercing . | . . . Sneak Attacks 1 | . . 1 Combat Hostiles . | . . . Follow-up Attacks . | . . . Damage Inflicted 74 | . 25 49 Guns . | . . . Cannons . | . . . Explosions . | . . . Melee 49 | . . 49 Ramming 25 | . 25 . Kinetic . | . . . Thermal . | . . . Explosive . | . . . Electromagnetic . | . . . Impact . | . . . Slashing 49 | . . 49 Piercing . | . . . Highest Corruption 2 | . 2 . Average Corruption 1 | . 1 . Corruption Purged . | . . . Corruption Blocked . | . . . Overload Shots . | . . . Overflow Damage 29 | . . 29 Projectiles . | . . . Explosions . | . . . Melee 29 | . . 29 Knockbacks . | . . . Impact . | . . . Kinetic . | . . . Secondary . | . . . Self-Inflicted Damage 11 | . 11 . Shots . | . . . Rammed 4 | . 4 . Targets Rammed 4 | . 4 . Kicked . | . . . Crushed . | . . . Highest Temperature . | . . . Average Temperature . | . . . Received Heat Transfer 183 | . 66 117 Siege Activations . | . . . Martial Activations . | . . . Shielding Activations . | . . . Robots Disrupted . | . . . Combat Hostiles . | . . . Robots Corrupted . | . . . Combat Hostiles . | . . . Parts Fried . | . . . Impact Corruptions . | . . . Robots Melted . | . . . Combat Hostiles . | . . . Parts Melted . | . . . Heat Transferred . | . . . Parts Sabotaged . | . . . Parts Stolen . | . . . Parts Stripped . | . . . Power Chain Reactions . | . . . Alert | -11 -10 -9 ------- Run | Yrd Mat Mat Maximum Alert Level . | . . . Low Security (%) 100 | 100 100 100 Level 1 . | . . . Level 2 . | . . . Level 3 . | . . . Level 4 . | . . . Level 5 . | . . . High Security . | . . . Max Security . | . . . Peak Influence 60 | . 4 60 Initial . | . . . Average 1 | . . 2 Influence Increases 77 | . 4 73 Destroy 0b10 Robot/NC 5 | . . 5 Successful Hack 12 | . 4 8 Partial Spotted 15 | . . 15 Lose Combat Pursuer 45 | . . 45 Influence Decreases 17 | . 4 13 Time Decay 14 | . 4 10 Lost Part 3 | . . 3 Squads Dispatched 5 | . 4 1 Investigation 5 | . 4 1 Extermination . | . . . Reinforcement . | . . . Assault . | . . . Garrison . | . . . Intercept . | . . . Searches Triggered . | . . . Construction Impeded . | . . . Haulers Reinforced . | . . . Active Scanning Responses . | . . . Cargo Convoy Interrupts . | . . . Stealth | -11 -10 -9 --------- Run | Yrd Mat Mat Distress Signals 3 | . 2 1 Communications Jammed . | . . . Distress Signals . | . . . Times Spotted 20 | . 7 13 Peak Tracking Total 12 | . 7 12 Tactical Retreats 1 | . . 1 Traps | -11 -10 -9 ------- Run | Yrd Mat Mat Traps Triggered 1 | . 1 . Indirectly . | . . . Trap Hack Attempts . | . . . Triggered . | . . . Disarmed . | . . . Reprogrammed . | . . . Reused . | . . . Traps Extracted . | . . . Installed . | . . . Triggered . | . . . Machines | -11 -10 -9 ---------- Run | Yrd Mat Mat Machines Disabled . | . . . Max in Single Turn . | . . . Machines Repaired . | . . . Machines Dismantled . | . . . Machines Sabotaged . | . . . Overloaded Fab Kills . | . . . Hacking | -11 -10 -9 --------- Run | Yrd Mat Mat Machines Accessed 8 | . 4 4 Terminals 7 | . 4 3 Fabricators . | . . . Repair Stations . | . . . Recycling Units . | . . . Scanalyzers 1 | . . 1 Garrison Access . | . . . Total Hacks 23 | . 14 9 Successful 7 | . 3 4 Failed 15 | . 11 4 Catastrophic 4 | . 3 1 Database Lockouts 1 | . . 1 Manual 21 | . 14 7 Terminals 21 | . 14 7 Fabricators . | . . . Repair Stations . | . . . Recycling Units . | . . . Scanalyzers 2 | . . 2 Garrison Access . | . . . Terminal Hacks 2 | . 1 1 Level Access Points 1 | . . 1 Terminal Index 1 | . 1 . Fabricator Hacks . | . . . Repair Station Hacks . | . . . Recycling Unit Hacks . | . . . Scanalyzer 1 | . . 1 Retrieve Study 1 | . . 1 Garrison Access Hacks . | . . . Unauthorized Hacks 4 | . 2 2 Terminals 4 | . 2 2 Botnet 4 | . 2 2 Fabricators . | . . . Repair Stations . | . . . Recycling Units . | . . . Scanalyzers . | . . . Garrison Access . | . . . Data Cores Recovered . | . . . Used . | . . . Hacking Detections 6 | . 4 2 Full Trace Events 6 | . 4 2 Feedback Events . | . . . Feedback Blocked . | . . . Robot Schematics Acquired . | . . . Robots Built . | . . . Authchips . | . . . Time . | . . . Total Robot Build Rating . | . . . Part Schematics Acquired . | . . . Parts Built . | . . . Authchips . | . . . Time . | . . . Total Part Build Rating . | . . . Part Studies Acquired 1 | . . 1 Parts Repaired . | . . . Time . | . . . Parts Recycled . | . . . Recycled Matter . | . . . Retrieved Matter . | . . . Retrieved Components . | . . . Parts Scanalyzed . | . . . Part Schematics Acquired . | . . . Parts Damaged . | . . . Bothacking | -11 -10 -9 ------------ Run | Yrd Mat Mat Used RIF Installer . | . . . Robots Hacked . | . . . Non-combat . | . . . Combat . | . . . Robot Hacks Applied . | . . . Relay Couplers Released . | . . . Fabnet Peak Effective % . | . . . Robots Rewired . | . . . Allies Hacked . | . . . Hacks Repelled . | . . . Allies | -11 -10 -9 -------- Run | Yrd Mat Mat Total Allies . | . . . Largest Group . | . . . Highest-Rated Group . | . . . Highest-Rated Ally . | . . . Total Orders . | . . . Ally Attacks . | . . . Total Damage . | . . . Kills . | . . . Allies Corrupted . | . . . Allies Melted . | . . . Intel | -11 -10 -9 ------- Run | Yrd Mat Mat Active Infowar (turns) . | . . . Robot Analysis Total . | . . . Derelict Logs Recovered . | . . . Drone Launches . | . . . Drone Recoveries . | . . . Exploration | -11 -10 -9 ------------- Run | Yrd Mat Mat Turns Passed 238 | 18 94 126 Spaces Moved 423 | 30 174 219 Core 375 | 30 174 171 Treads . | . . . Legs . | . . . Wheels . | . . . Hover . | . . . Flight 48 | . . 48 Fastest Speed 40 | 50 50 40 Average Speed 48 | 50 50 47 Slowest Speed 50 | 50 50 50 Overloaded Moves . | . . . Propulsion Burnouts . | . . . Robots Hopped 1 | . . 1 Potential Cave-ins . | . . . Cave-ins Triggered . | . . . Exploration Rate (%) 28 | 3 48 35 Regions Visited 2 Branch Regions . Pre-discovered Areas . | . . . Known Exits Taken 1 | . 1 . Unknown Exits Taken 1 | 1 . . Scrap Searched . | . . . Spaces Dug . | . . . Terrain Destroyed . | . . . Melee . | . . . Projectile . | . . . AOE . | . . . Terrain Rammed . | . . . Walls Destroyed . | . . . Machines Disabled . | . . . Actions | -11 -10 -9 --------- Run | Yrd Mat Mat Total 445 | 32 179 234 Wait . | . . . Move 419 | 29 173 217 Hop 1 | . . 1 Pick Up 7 | 3 1 3 Fast Attach 3 | . 1 2 Attach 4 | . . 4 Detach 2 | . . 2 Swap . | . . . Drop 2 | . . 2 Fire . | . . . Melee 3 | . . 3 Ram 4 | . 4 . Kick . | . . . Crush . | . . . Escape Stasis . | . . . Rewire . | . . . Trap . | . . . Miscellaneous . | . . . Route ------- -11/Scrapyard -10/Materials (discovered 2 exits: *Mat / [*Min]) -9/Materials (discovered 4 exits: Mat x3 / [*Min]) History --------- Turn | Location | Event 11 | -11/Scrapyard | Discovered new exit (range 13) 19 | -11/Scrapyard | Entered Materials 69 | -10/Materials | Discovered new exit (range 15) 106 | -10/Materials | Discovered new exit (range 10) 112 | -10/Materials | Identified exit to Materials 113 | -10/Materials | Entered another Materials area 113 | -9/Materials | Evolved 2 slots: Propulsion x1, Utility x1 178 | -9/Materials | Central database locked down 189 | -9/Materials | Discovered new exit (range 16) 201 | -9/Materials | Identified exit to Materials 202 | -9/Materials | Core integrity fell below 50% 216 | -9/Materials | Core integrity fell below 20% 239 | -9/Materials | Destroyed by S-10 Pest with Light Assault Rifle Last Messages --------------- (85,88) (93,21) Map updated. 00203_ S-10 Pest destroyed. 00208_ U-05 Engineer works on Atomic Centrifuge. 00208_ S-10 Pest Lgt. Ion Engine ripped off. 00211_ Dropped Lgt. Ion Engine. 00211_ Acquired 19 matter. 00212_ U-05 Engineer destroyed. 00212_ Acquired Flight Unit+. 00217_ K-01 Serf cleans the Matter Filter. 00219_ K-01 Serf collects debris. 00222_ K-01 Serf cleans the Matter Filter. 00223_ K-01 Serf collects debris. 00224_ Mining Claw destroyed. 00226_ K-01 Serf cleans the Matter Filter. 00231_ K-01 Serf collects debris. 00232_ S-10 Pest destroyed. 00233_ T-07 Excavator is excavating. 00236_ Connecting with Terminal... Map ----- +----------------------------------------------------+ | ????? ????" #?????????????????????????????? | | ????# "???" #????? ?????????????????????? | | ##### ""?"" #????? #????????????????????? | | ?? #????? #????????????????????? | | ?? #????? #????????????????????? | | ""?"" #????? #????????????????????? | | # """"" #????? #????????????????????? | | # """"" #??### ###??????????????????? | | """"" #??# ???????????????????? | | """"" #??# ?????? ?????????????? | | """"" #??# ??????? ?????????????? | | """"" #??# #???????? ?????????????? | | #??# #???????? ?????????????? | | #### #???????? ?????????????? | | ! #???????? ###??????????? | | #####* #???????# #??????????? | | ####### ########?###% #??????? +??????????? | | ??????# #????????# # #???????# #??????????? | | ??????# #????????# t k +???????# #??????????? | | ??????# #????????### s #???????# #??????????? | | ??????# #??????????# #???????# #??????????? | | ??????# #??######### s##?????## ##?????????? | | ??????# #??# ####### #?????????? | | ??????# #??# s #?????????? | | ??????# #??# """ T #?????????? | | ??????? ???# "R @ #?????????? | | ??????? ????? """ ####### #?????????? | | ??????? ???? ##?????#######?????????? | | ??????? ???# #??????????????????????? | | ??????? ???# #??????????????????????? | | ??????? ???# """ #??????????????????????? | | ??????? ???# """ #??????????????????????? | | ???????????# ??"" #??????????????????????? | | ???????????????"" #??????????????????????? | | ??????????????? ???????????????????????? | | ??????????????? ???????????????????????? | | ??????????????? ???????????????????????? | | ?????????????????#?# ???????????????????????? | | ????????????????????? ????????????????????????? | | ??????????????????????????????????????????????? | | ??????????????????????????????????????????????? | | ??????????????????????????????????????????????? | | ????????????????????????????????